Cogmind - Beta 17 @@@ ROGUE MODE // 2026.07.14 @ 01:09:05 Player: Nerf Result: Destroyed by Y-45 Defender with Beam Rifle Performance ------------- Evolutions (1) 500 Regions Visited (3) 600 Robots Destroyed (22) 110 Value Destroyed (440) 440 Prototype IDs (2) 40 Alien Tech Used (0) 0 Bonus (0) 0 TOTAL SCORE: 1690 Bonus ------- None Cogmind --------- Core Integrity 0/400 Matter 300/300 Energy 7/100 System Corruption 0% Temperature Cool (9) Movement Walking (120) Location -9/Materials Parts ------- > --- POWER (1) -------- (None) > --- PROPULSION (2) --- Aluminum Leg Aluminum Leg > --- UTILITY (3) ------ Heat Sink Signal Interpreter > --- WEAPON (3) ------- Beam Rifle Light EM Pulse Cannon Hammer > --- INVENTORY (5) ---- Ion Engine Ion Engine Peak State ------------ > --- POWER ------------ Ion Engine > --- PROPULSION ------- Compact Wheel Compact Wheel > --- UTILITY ---------- Signal Interpreter Improved Terrain Scanner Terrain Scan Processor > --- WEAPON ----------- EM Pulse Gun EM Pulse Gun Particle Cannon > --- INVENTORY -------- Welding Torch Hammer [Rating: 13] Favorites ----------- Power Ion Engine Engine Ion Engine Propulsion Compact Wheel Leg Aluminum Leg Wheel Compact Wheel Flight Unit Flight Unit Utility Signal Interpreter Device Improved Terrain Scanner Processor Signal Interpreter Protection Medium Armor Plating Weapon EM Pulse Gun Energy Gun EM Pulse Gun Energy Cannon Light EM Pulse Cannon Special Weapon Plasma Cutter Impact Weapon Hammer Build | -11 -10 -10 -9 ------- Run | Yrd Mat Min Mat Slots Evolved 2 | . . . 2 Power . | . . . . Propulsion . | . . . . Utility 1 | . . . 1 Weapon 1 | . . . 1 Parts Attached 23 | 6 . 1 16 Power 3 | 1 . . 2 Engine 3 | 1 . . 2 Core . | . . . . Reactor . | . . . . Propulsion 7 | 2 . . 5 Treads . | . . . . Leg 2 | . . . 2 Wheel 2 | 2 . . . Hover . | . . . . Flight 3 | . . . 3 Utility 5 | 1 . 1 3 Device 2 | 1 . . 1 Storage . | . . . . Processor 2 | . . 1 1 Hackware . | . . . . Protection 1 | . . . 1 Artifact . | . . . . Weapon 8 | 2 . . 6 Energy Gun 3 | 2 . . 1 Energy Cannon 2 | . . . 2 Ballistic Gun . | . . . . Ballistic Cannon . | . . . . Launcher . | . . . . Special Weapon 2 | . . . 2 Impact Weapon 1 | . . . 1 Slashing Weapon . | . . . . Piercing Weapon . | . . . . Special Melee Weapon . | . . . . Unidentified Prototypes . | . . . . Parts Lost 10 | . . . 10 Power 2 | . . . 2 Propulsion 1 | . . . 1 Utility 2 | . . . 2 Weapon 5 | . . . 5 Highest Loss Streak 5 | . . . 5 To Critical Strikes . | . . . . Average Backups . | . . . 1 Power . | . . . . Propulsion . | . . . . Utility . | . . . . Weapon . | . . . . Tool/Special . | . . . . Unused Backups 3 | . . . 3 Power 2 | . . . 2 Propulsion 1 | . . . 1 Utility . | . . . . Weapon . | . . . . Tool/Special . | . . . . Average Slot Usage (%) 88 | . 85 86 90 Engine 11 | . 14 14 10 Leg 4 | . . . 7 Wheel 14 | . 28 28 6 Flight 4 | . . . 7 Device 11 | . 14 14 10 Processor 9 | . . 1 14 Protection 3 | . . . 6 Energy Gun 13 | . 28 28 4 Energy Cannon 4 | . . . 7 Special Weapon 4 | . . . 7 Impact Weapon 5 | . . . 8 Peak Build Rating 13 | 8 8 9 13 Average Rating 9 | 3 8 8 10 On Entrance 6 | . 8 8 9 Avg Prop Armor Cover (%) 3 | . . . 3 Naked Turns . | . . . . Heaviest Build 20 | 10 10 10 20 Greatest Support 32 | 32 32 32 32 Greatest Overweight (x) 2 | . . . 2 Average Overweight (x) . | . . . . Largest Inventory Capacity 5 | 5 5 5 5 Average Capacity 5 | 5 5 5 5 Most Carried 5 | 4 . 2 5 Average Carried . | . . . 1 Final Capacity 5 | 5 5 5 5 Final Carried 2 | . . 2 2 Class Distribution -------------------- 62% | Mutant 30% | Scavenger-Mutant 7% | Skirmisher Dominant Class ---------------- Mutant | -10/Materials Mutant | -10/Mines Scavenger-Mutant | -9/Materials Resources | -11 -10 -10 -9 ----------- Run | Yrd Mat Min Mat Matter Collected 508 | 173 . 97 238 Remotely . | . . . . Salvage Created 719 | 114 . . 605 Parts 55 | 5 . . 50 Haulers Intercepted . | . . . . Recyclers Shooed . | . . . . Parts Field Recycled . | . . . . Retrieved Matter . | . . . . Parts Self-Destructed . | . . . . Prevented . | . . . . Parts Restored . | . . . . Kills | -11 -10 -10 -9 ------- Run | Yrd Mat Min Mat Combat Hostiles Destroyed 16 | . . . 16 Melee 2 | . . . 2 Guns 6 | . . . 6 Cannons 8 | . . . 8 Classes Destroyed 7 | 2 . . 5 Worker 1 | . . . 1 Builder 2 | . . . 2 Tunneler 2 | 2 . . . Recycler 1 | 1 . . . Swarmer 7 | . . . 7 Grunt 6 | . . . 6 Sentry 3 | . . . 3 Best Kill Streak 6 | 2 . . 6 Combat Bots Only 6 | . . . 6 Max Kills in Single Turn 1 | 1 . . 1 Gunslinging . | . . . . Exploded . | . . . . Melee 1 | . . . 1 Uniques/NPCs Destroyed . | . . . . Combat | -11 -10 -10 -9 -------- Run | Yrd Mat Min Mat Hostile Shots Fired 125 | . . . 125 Missed 35 | . . . 35 Hits 90 | . . . 90 Projectile 90 | . . . 90 Critical Strikes 2 | . . . 2 Damage Taken 1169 | . . . 1169 Core 412 | . . . 412 Absorbed by Shields . | . . . . Core Remaining (%) 100 | 100 . 100 . Volleys Fired 52 | 9 . . 43 Largest 3 | 2 . . 3 Hottest 148 | 80 . . 148 Shots Fired 88 | 18 . . 70 Gun 40 | 18 . . 22 Cannon 35 | . . . 35 Launcher . | . . . . Special 13 | . . . 13 Kinetic . | . . . . Thermal 25 | . . . 25 Explosive . | . . . . Electromagnetic 63 | 18 . . 45 Robot Hit Streak 5 | 3 . . 5 Robot Miss Streak 6 | 3 . . 6 Penetration Max . | . . . . Secondary Targets . | . . . . Shots Hit Robots 46 | 9 . . 37 Core Hits 28 | 4 . . 24 Critical Kills . | . . . . Critical Parts Destroyed . | . . . . Critical Strikes 2 | . . . 2 Corrupt 1 | . . . 1 Sever 1 | . . . 1 Melee Attacks 9 | . . . 9 Impact 9 | . . . 9 Slashing . | . . . . Piercing . | . . . . Sneak Attacks 1 | . . . 1 Combat Hostiles . | . . . . Follow-up Attacks . | . . . . Damage Inflicted 937 | 156 . . 781 Guns 241 | 110 . . 131 Cannons 355 | . . . 355 Explosions 66 | 46 . . 20 Melee 205 | . . . 205 Ramming . | . . . . Kinetic . | . . . . Thermal 253 | 46 . . 207 Explosive . | . . . . Electromagnetic 479 | 110 . . 369 Impact 205 | . . . 205 Slashing . | . . . . Piercing . | . . . . Highest Corruption . | . . . . Average Corruption . | . . . . Corruption Purged . | . . . . Corruption Blocked . | . . . . Overload Shots . | . . . . Overflow Damage . | . . . . Projectiles . | . . . . Explosions . | . . . . Melee . | . . . . Knockbacks . | . . . . Impact . | . . . . Kinetic . | . . . . Secondary . | . . . . Self-Inflicted Damage . | . . . . Shots . | . . . . Rammed . | . . . . Targets Rammed . | . . . . Kicked . | . . . . Crushed . | . . . . Highest Temperature 727 | 70 . . 727 Average Temperature 222 | 30 . . 294 Received Heat Transfer 369 | . . . 369 Effects 19 | . . . 19 Shutdowns 2 | . . . 2 Energy Bleed 1 | . . . 1 Interference 1 | . . . 1 Matter Decay 2 | . . . 2 Short Circuit 2 | . . . 2 Damage (minor) 2 | . . . 2 Damage (major) 6 | . . . 6 Damage (core) 3 | . . . 3 Siege Activations . | . . . . Martial Activations . | . . . . Shielding Activations . | . . . . Robots Disrupted . | . . . . Combat Hostiles . | . . . . Robots Corrupted . | . . . . Combat Hostiles . | . . . . Parts Fried 1 | 1 . . . Impact Corruptions . | . . . . Robots Melted . | . . . . Combat Hostiles . | . . . . Parts Melted 2 | . . . 2 Heat Transferred 557 | . . . 557 Parts Sabotaged . | . . . . Parts Stolen . | . . . . Parts Stripped . | . . . . Power Chain Reactions 2 | 1 . . 1 Alert | -11 -10 -10 -9 ------- Run | Yrd Mat Min Mat Maximum Alert Level . | . . . . Low Security (%) 100 | 100 100 100 100 Level 1 . | . . . . Level 2 . | . . . . Level 3 . | . . . . Level 4 . | . . . . Level 5 . | . . . . High Security . | . . . . Max Security . | . . . . Peak Influence 197 | 5 . . 197 Initial . | . . . . Average 66 | 1 . . 113 Influence Increases 480 | 15 . . 465 Destroy 0b10 Robot/C 320 | . . . 320 Destroy 0b10 Robot/NC 30 | 15 . . 15 Destroy Leader 70 | . . . 70 Successful Hack 12 | . . . 12 Destroy Structure 3 | . . . 3 Lose Combat Pursuer 45 | . . . 45 Influence Decreases 329 | 15 . . 314 Time Decay 229 | 15 . . 214 Lost Part 100 | . . . 100 Squads Dispatched 2 | . . . 2 Investigation 2 | . . . 2 Extermination . | . . . . Reinforcement . | . . . . Assault . | . . . . Garrison . | . . . . Intercept . | . . . . Searches Triggered . | . . . . Construction Impeded . | . . . . Haulers Reinforced . | . . . . Active Scanning Responses . | . . . . Cargo Convoy Interrupts . | . . . . Stealth | -11 -10 -10 -9 --------- Run | Yrd Mat Min Mat Distress Signals . | . . . . Communications Jammed . | . . . . Distress Signals . | . . . . Times Spotted 21 | . . . 21 Peak Tracking Total 8 | . . . 8 Tactical Retreats 2 | . . . 2 Traps | -11 -10 -10 -9 ------- Run | Yrd Mat Min Mat Traps Triggered 1 | . . . 1 Indirectly . | . . . . Trap Hack Attempts . | . . . . Triggered . | . . . . Disarmed . | . . . . Reprogrammed . | . . . . Reused . | . . . . Traps Extracted . | . . . . Installed . | . . . . Triggered . | . . . . Machines | -11 -10 -10 -9 ---------- Run | Yrd Mat Min Mat Machines Disabled . | . . . . Max in Single Turn . | . . . . Machines Repaired . | . . . . Machines Dismantled . | . . . . Machines Sabotaged . | . . . . Overloaded Fab Kills . | . . . . Hacking | -11 -10 -10 -9 --------- Run | Yrd Mat Min Mat Machines Accessed 4 | . . . 4 Terminals 2 | . . . 2 Fabricators . | . . . . Repair Stations . | . . . . Recycling Units 2 | . . . 2 Scanalyzers . | . . . . Garrison Access . | . . . . Total Hacks 14 | . . . 14 Successful 9 | . . . 9 Failed 5 | . . . 5 Catastrophic 1 | . . . 1 Database Lockouts . | . . . . Manual . | . . . . Terminals 9 | . . . 9 Fabricators . | . . . . Repair Stations . | . . . . Recycling Units 5 | . . . 5 Scanalyzers . | . . . . Garrison Access . | . . . . Terminal Hacks 5 | . . . 5 Record 2 | . . . 2 Prototype ID Bank 1 | . . . 1 Repair Station Index 1 | . . . 1 Zone Layout 1 | . . . 1 Fabricator Hacks . | . . . . Repair Station Hacks . | . . . . Recycling Unit Hacks 4 | . . . 4 Process 1 | . . . 1 Retrieve Matter 1 | . . . 1 Retrieve Components 2 | . . . 2 Scanalyzer . | . . . . Garrison Access Hacks . | . . . . Unauthorized Hacks . | . . . . Terminals . | . . . . Fabricators . | . . . . Repair Stations . | . . . . Recycling Units . | . . . . Scanalyzers . | . . . . Garrison Access . | . . . . Data Cores Recovered . | . . . . Used . | . . . . Hacking Detections 2 | . . . 2 Full Trace Events 2 | . . . 2 Feedback Events . | . . . . Feedback Blocked . | . . . . Robot Schematics Acquired . | . . . . Robots Built . | . . . . Authchips . | . . . . Time . | . . . . Total Robot Build Rating . | . . . . Part Schematics Acquired . | . . . . Parts Built . | . . . . Authchips . | . . . . Time . | . . . . Total Part Build Rating . | . . . . Part Studies Acquired . | . . . . Parts Repaired . | . . . . Time . | . . . . Parts Recycled . | . . . . Recycled Matter . | . . . . Retrieved Matter . | . . . . Retrieved Components 2 | . . . 2 Parts Scanalyzed . | . . . . Part Schematics Acquired . | . . . . Parts Damaged . | . . . . Bothacking | -11 -10 -10 -9 ------------ Run | Yrd Mat Min Mat Used RIF Installer . | . . . . Robots Hacked . | . . . . Non-combat . | . . . . Combat . | . . . . Robot Hacks Applied . | . . . . Relay Couplers Released . | . . . . Fabnet Peak Effective % . | . . . . Robots Rewired . | . . . . Allies Hacked . | . . . . Hacks Repelled . | . . . . Allies | -11 -10 -10 -9 -------- Run | Yrd Mat Min Mat Total Allies . | . . . . Largest Group . | . . . . Highest-Rated Group . | . . . . Highest-Rated Ally . | . . . . Total Orders . | . . . . Ally Attacks . | . . . . Total Damage . | . . . . Kills . | . . . . Allies Corrupted . | . . . . Allies Melted . | . . . . Intel | -11 -10 -10 -9 ------- Run | Yrd Mat Min Mat Active Infowar (turns) 353 | 2 92 166 93 Terrain 353 | 2 92 166 93 Robot Analysis Total . | . . . . Derelict Logs Recovered 1 | . . 1 . Drone Launches . | . . . . Drone Recoveries . | . . . . Exploration | -11 -10 -10 -9 ------------- Run | Yrd Mat Min Mat Turns Passed 788 | 69 92 166 461 Spaces Moved 405 | 39 30 87 249 Core 17 | 17 . . . Treads . | . . . . Legs 84 | . . . 84 Wheels 189 | 22 30 87 50 Hover . | . . . . Flight 115 | . . . 115 Fastest Speed 34 | 50 100 100 34 Average Speed 96 | 78 100 100 97 Slowest Speed 194 | 100 100 100 194 Overloaded Moves . | . . . . Propulsion Burnouts . | . . . . Robots Hopped . | . . . . Potential Cave-ins . | . . . . Cave-ins Triggered . | . . . . Exploration Rate (%) 14 | 4 13 22 18 Regions Visited 3 Branch Regions 1 Pre-discovered Areas . | . . . . Known Exits Taken 1 | . . 1 . Unknown Exits Taken 2 | 1 1 . . Scrap Searched 1 | . . 1 . Spaces Dug . | . . . . Terrain Destroyed 5 | 2 . . 3 Melee . | . . . . Projectile . | . . . . AOE 5 | 2 . . 3 Terrain Rammed . | . . . . Walls Destroyed . | . . . . Machines Disabled . | . . . . Actions | -11 -10 -10 -9 --------- Run | Yrd Mat Min Mat Total 698 | 59 92 166 381 Wait 169 | . 63 76 30 Move 402 | 38 29 86 249 Hop . | . . . . Pick Up 27 | 6 . 3 18 Fast Attach . | . . . . Attach 23 | 6 . 1 16 Detach 5 | . . . 5 Swap 2 | . . . 2 Drop 6 | . . . 6 Fire 52 | 9 . . 43 Melee 9 | . . . 9 Ram . | . . . . Kick . | . . . . Crush . | . . . . Escape Stasis . | . . . . Rewire . | . . . . Trap . | . . . . Miscellaneous 3 | . . . 3 Route ------- -11/Scrapyard -10/Materials -10/Mines -9/Materials History --------- Turn | Location | Event 4 | -11/Scrapyard | Discovered new exit (range 15) 70 | -11/Scrapyard | Entered Materials 148 | -10/Materials | Discovered new exit (range 14) 162 | -10/Materials | Entered Mines 289 | -10/Mines | Learned Materials emergency access door positions 323 | -10/Mines | Discovered new exit (range 5) 325 | -10/Mines | Build established: Mutant 327 | -10/Mines | Identified exit to Materials 328 | -10/Mines | Entered Materials 328 | -9/Materials | Evolved 2 slots: Utility x1, Weapon x1 412 | -9/Materials | Core integrity fell below 50% 460 | -9/Materials | Core integrity fell below 20% 462 | -9/Materials | Lost 5 parts (1p1u3w) 789 | -9/Materials | Destroyed by Y-45 Defender with Beam Rifle Last Messages --------------- Rifle. R-06 Scavenger collects Corrupted Lgt. Treads. R-06 Scavenger collects Welding Torch. R-06 Scavenger collects Heat Sink. R-06 Scavenger collects Corrupted Lgt. Ion Engine. R-06 Scavenger collects Corrupted Terrain Scan Processor. Med. Armor Plating destroyed. Plasma Cutter destroyed. R-06 Scavenger collects Corrupted Aluminum Leg. Acquired Beam Rifle. R-06 Scavenger collects Corrupted Terrain Scanner. Acquired 10 matter. Ion Engine destroyed. K-01 Serf collects debris. U-05 Engineer lays Concrete. K-01 Serf collects debris. U-05 Engineer lays Concrete. Map ----- +----------------------------------------------------+ | ?????????????????????????????????????????????????? | | ??????????????????????????????????????????????+??? | | ?????????????????????????????????????????????????? | | ?????????????????????????????????????????????????? | | ?????????????????????????????????????????????????? | | ?????????????????????????????????????????????????? | | ?????????????????????????????????????????????????? | | ?????????????????????????????????????????????????? | | ?????????????????????????????????????????????????? | | ?????????????????????????????????????????????????? | | ?????????????????????????????????????????????????? | | ?????????????????????????????????????????????????? | | ?????????????????????????????????????????????????? | | ?????????????????????????????????????????????????? | | ?????????????????????????????????????????????????? | | ?????????????????????????????????????????????????? | | ?????????????????????????????????????????????????? | | ??????????????????????#######????????????????????? | | ?????????????????????? ????????????????????? | | ??????????????????????? ?????????????????????? | | ??????????????????????? ?????????????????????? | | ???????????????????????# #?????????????????????? | | ???????????????????????# #?????????????????????? | | ??????????????????????## ##????????????????????? | | ??????????? ########## #????????????????????? | | ?????????? @ #????????????????????? | | ?????????? ! #????????????????????? | | ?????????? Y %* #????????????????????? | | ??????????? "##+#######k #????????????????????? | | ??????????????????????##% =####??????????????????? | | ???????????????????????# # ???????????????????? | | ???????????????????????#%u + ????????????????????? | | ???????????????????????#!| #?????????????????????? | | ???????????????????????# #?????????????????????? | | ???????????????????????# #?????????????????????? | | ???????????????????????# #?????????????????????? | | ???????????????????????# #????+????????????????? | | ???????????????????????# a #?????????????????????? | | ???????????????????????#r #?????????????????????? | | ???????????????????????# #?????????????????????? | | ???????????????????????# #?????????????????????? | | ???????????????????????# #?????????????????+???? | | ?????????????????####### =## ?????????????? | | ?????????????????# # =%######+### ??????????? | | ?????????????????# [! ?????????? | | ?????????????????# ? ???????? | | ??????????????##?# ?????????? | | ???????????????#?# ### ##### ?????????? | | ???????????#???#?## #### ####??##?????????? | | ??????????????##### #?##! !##???#??#????"???? | +----------------------------------------------------+ Best States ------------- Heat Dissipation 38 Energy Generation 10 Energy Capacity 250 Matter Stores 300 Matter Capacity 300 Sight Range 16 Terrain Scan Range 16 Terrain Scan Density 85 Armor Coverage 225 Evasion (%) 63 Item Schematics ----------------- None Robot Schematics ------------------ None Fabricated ------------ Nothing Repaired ---------- Nothing Studied --------- None Alien Tech Used ----------------- None Achievements -------------- None Challenges ------------ None Game ------ Seed TeleporterStrikeNetwork Manual? 0 Play Time 00:15:17 Cumulative 7.1 hours Start 2026.07.14 @ 00:54:57 End 2026.07.14 @ 01:09:05 Sessions 1 Manual Loads 0 Difficulty Rogue Special Mode None Game No. 23 Rogue 23 Adventurer 0 Explorer 0 Win Type - Total 0 Types 0/0/0/0/0/0/0/0/0/0 Lore% 4 Gallery% 11 Achievement% 9 Wizard Run 0 Options --------- Layout 1 ASCII 0 Keyboard 0 Movement Mouse Keybinds 0 Fullscreen 1 Font 32/SmallcapsGlow Map View 50x35 Zoom Use 0% Tactical HUD 0 Map Filters NONE Filters NONE Steam 1 RUN: 9c2a3426-2fa4-4dcc-aee7-3f4f889aa93a